[Event "*** Titled Tuesday Blitz"]
[Site "Chess.com"]
[Date "2021.03.16"]
[Round "10"]
[White "Chigorinetz"]
[Black "Supernotar"]
[Result "0-1"]
[WhiteElo "2499"]
[BlackElo "2711"]
[TimeControl "180+1"]
[EndTime "11:55:37 PDT"]
[Termination "Supernotar won on time"]

1. e4 {[%clk 0:03:00.9]} 1... c6 {[%clk 0:03:00.1]} 2. d4 {[%clk 0:02:59.8]}
2... d5 {[%clk 0:02:59.8]} 3. f3 {[%clk 0:03:00.2]} 3... dxe4 {[%clk 0:02:59]}
4. fxe4 {[%clk 0:02:58.9]} 4... e5 {[%clk 0:02:59.2]} 5. Nf3 {[%clk 0:02:58.5]}
5... Bg4 {[%clk 0:02:58.1]} 6. Bc4 {[%clk 0:02:56.6]} 6... Nd7 {[%clk
0:02:56.9]} 7. c3 {[%clk 0:02:55.7]} 7... b5 {[%clk 0:02:55.9]} 8. Bb3 {[%clk
0:02:45.7]} 8... Ngf6 {[%clk 0:02:47.6]} 9. O-O {[%clk 0:02:42.4]} 9... Bd6
{[%clk 0:02:46.7]} 10. Bg5 {[%clk 0:02:40.6]} 10... Qc7 {[%clk 0:02:45.8]} 11.
Nbd2 {[%clk 0:02:39.6]} 11... O-O {[%clk 0:02:44.7]} 12. Qe1 {[%clk 0:02:35]}
12... Bh5 {[%clk 0:02:42.5]} 13. Qh4 {[%clk 0:02:32.2]} 13... Bg6 {[%clk
0:02:39.4]} 14. Rae1 {[%clk 0:02:29.1]} 14... Rae8 {[%clk 0:02:38.7]} 15. Kh1
{[%clk 0:02:27.6]} 15... a6 {[%clk 0:02:36.4]} 16. a3 {[%clk 0:02:21.9]} 16...
Qb8 {[%clk 0:02:21.1]} 17. Re3 {[%clk 0:02:17]} 17... c5 {[%clk 0:02:15.4]} 18.
dxe5 {[%clk 0:02:08.4]} 18... Bxe5 {[%clk 0:02:16.3]} 19. Nxe5 {[%clk 0:02:07]}
19... Qxe5 {[%clk 0:02:16.2]} 20. Nf3 {[%clk 0:01:57]} 20... Qc7 {[%clk
0:02:05.5]} 21. e5 {[%clk 0:01:55.2]} 21... c4 {[%clk 0:02:03.5]} 22. exf6
{[%clk 0:01:49.9]} 22... Rxe3 {[%clk 0:02:01.9]} 23. Bxe3 {[%clk 0:01:38.9]}
23... cxb3 {[%clk 0:02:01.4]} 24. fxg7 {[%clk 0:01:37.5]} 24... Re8 {[%clk
0:01:59.9]} 25. Bd4 {[%clk 0:01:37]} 25... Qc4 {[%clk 0:01:53]} 26. Rd1 {[%clk
0:01:14.3]} 26... Qc6 {[%clk 0:01:14.9]} 27. h3 {[%clk 0:01:10.6]} 27... f6
{[%clk 0:01:12.1]} 28. Rf1 {[%clk 0:01:06.2]} 28... Kxg7 {[%clk 0:01:08.4]} 29.
Nh2 {[%clk 0:01:01.1]} 29... Re2 {[%clk 0:01:03.9]} 30. Rf2 {[%clk 0:00:57.1]}
30... Rxf2 {[%clk 0:01:02.6]} 31. Qxf2 {[%clk 0:00:55.9]} 31... Qe4 {[%clk
0:01:00.2]} 32. Ng4 {[%clk 0:00:53.3]} 32... Bf5 {[%clk 0:00:55.7]} 33. Ne3
{[%clk 0:00:47.2]} 33... Be6 {[%clk 0:00:56]} 34. Kh2 {[%clk 0:00:46.1]} 34...
Ne5 {[%clk 0:00:53.7]} 35. Qg3+ {[%clk 0:00:42.1]} 35... Ng6 {[%clk 0:00:48]}
36. Qc7+ {[%clk 0:00:34.1]} 36... Bf7 {[%clk 0:00:48.2]} 37. Kg1 {[%clk
0:00:29.2]} 37... Nf4 {[%clk 0:00:45]} 38. Qd6 {[%clk 0:00:24.1]} 38... Ne2+
{[%clk 0:00:44.7]} 39. Kf2 {[%clk 0:00:23.1]} 39... Nxd4 {[%clk 0:00:41.6]} 40.
Qxd4 {[%clk 0:00:23.3]} 40... Qb1 {[%clk 0:00:40.1]} 41. Qd2 {[%clk 0:00:21.7]}
41... Bg6 {[%clk 0:00:35.1]} 42. g4 {[%clk 0:00:19.9]} 42... Bd3 {[%clk
0:00:30.2]} 43. Nd5 {[%clk 0:00:15.2]} 43... Bc4 {[%clk 0:00:27.4]} 44. Ne3
{[%clk 0:00:12.9]} 44... Bd3 {[%clk 0:00:27.8]} 45. Kg3 {[%clk 0:00:12.3]} 45...
Bg6 {[%clk 0:00:24.1]} 46. Qd7+ {[%clk 0:00:08.9]} 46... Kh6 {[%clk 0:00:21.6]}
47. Qd2 {[%clk 0:00:07.9]} 47... Kg7 {[%clk 0:00:19.6]} 48. h4 {[%clk
0:00:07.7]} 48... h5 {[%clk 0:00:16.8]} 49. g5 {[%clk 0:00:06]} 49... fxg5
{[%clk 0:00:15.5]} 50. Qd7+ {[%clk 0:00:05]} 50... Bf7 {[%clk 0:00:13.9]} 51.
Qd4+ {[%clk 0:00:04.4]} 51... Kg8 {[%clk 0:00:12.6]} 52. hxg5 {[%clk 0:00:03.6]}
52... Qg1+ {[%clk 0:00:11.6]} 53. Kf4 {[%clk 0:00:02.9]} 53... Qh2+ {[%clk
0:00:10.1]} 54. Kf5 {[%clk 0:00:02.4]} 54... Qc7 {[%clk 0:00:08.9]} 55. Kf6
{[%clk 0:00:01.8]} 55... Qc6+ {[%clk 0:00:07.2]} 56. Ke7 {[%clk 0:00:01.6]}
56... Qe8+ {[%clk 0:00:06.5]} 0-1

[Event "*** Titled Tuesday Blitz"]
[Site "Chess.com"]
[Date "2021.03.16"]
[Round "10"]
[White "Mrlammy"]
[Black "Kislov_Oleg"]
[Result "0-1"]
[WhiteElo "2323"]
[BlackElo "2451"]
[TimeControl "180+1"]
[EndTime "11:55:37 PDT"]
[Termination "Kislov_Oleg won by checkmate"]

1. e4 {[%clk 0:03:00.9]} 1... c5 {[%clk 0:02:58.8]} 2. Nf3 {[%clk 0:03:00.7]}
2... Nc6 {[%clk 0:02:58]} 3. Bb5 {[%clk 0:03:00.8]} 3... g6 {[%clk 0:02:57.4]}
4. O-O {[%clk 0:03:00.4]} 4... Bg7 {[%clk 0:02:57]} 5. c3 {[%clk 0:03:01]} 5...
Nf6 {[%clk 0:02:55.5]} 6. Re1 {[%clk 0:03:00.9]} 6... O-O {[%clk 0:02:54.5]} 7.
d4 {[%clk 0:03:01]} 7... cxd4 {[%clk 0:02:53.6]} 8. cxd4 {[%clk 0:03:01.9]} 8...
d5 {[%clk 0:02:53.4]} 9. e5 {[%clk 0:03:00.2]} 9... Ne4 {[%clk 0:02:53.4]} 10.
Nc3 {[%clk 0:02:59.7]} 10... Nxc3 {[%clk 0:02:42.8]} 11. bxc3 {[%clk 0:03:00.6]}
11... Na5 {[%clk 0:02:37.4]} 12. h3 {[%clk 0:02:53.3]} 12... Bd7 {[%clk
0:02:33.3]} 13. Bd3 {[%clk 0:02:49.9]} 13... Rc8 {[%clk 0:02:30.1]} 14. Bd2
{[%clk 0:02:49.9]} 14... Nc4 {[%clk 0:02:29.2]} 15. Bxc4 {[%clk 0:02:44.7]}
15... Rxc4 {[%clk 0:02:28.3]} 16. Ng5 {[%clk 0:02:43.7]} 16... h6 {[%clk
0:02:14.3]} 17. Nf3 {[%clk 0:02:43.8]} 17... Bf5 {[%clk 0:02:03.8]} 18. Qb3
{[%clk 0:02:37.9]} 18... b6 {[%clk 0:02:01.3]} 19. Rec1 {[%clk 0:02:32.5]} 19...
Qc8 {[%clk 0:01:52.3]} 20. Ne1 {[%clk 0:02:22]} 20... h5 {[%clk 0:01:46.8]} 21.
a4 {[%clk 0:02:19.5]} 21... Qc6 {[%clk 0:01:38.3]} 22. a5 {[%clk 0:02:17.7]}
22... b5 {[%clk 0:01:37.3]} 23. Qa3 {[%clk 0:02:09]} 23... e6 {[%clk 0:01:30.7]}
24. Qe7 {[%clk 0:02:04]} 24... a6 {[%clk 0:01:26.4]} 25. Nf3 {[%clk 0:01:53.5]}
25... Rc8 {[%clk 0:01:10.5]} 26. Ng5 {[%clk 0:01:44.3]} 26... Qc7 {[%clk
0:01:07.4]} 27. Qa3 {[%clk 0:01:37.2]} 27... Bf8 {[%clk 0:01:06.5]} 28. Qb2
{[%clk 0:01:34]} 28... Be7 {[%clk 0:00:58.7]} 29. Nf3 {[%clk 0:01:33.6]} 29...
Qd8 {[%clk 0:00:51]} 30. Kh1 {[%clk 0:01:31.8]} 30... b4 {[%clk 0:00:47.1]} 31.
cxb4 {[%clk 0:01:25.8]} 31... Qd7 {[%clk 0:00:36.1]} 32. Rxc4 {[%clk 0:01:21.9]}
32... Rxc4 {[%clk 0:00:34.9]} 33. Rc1 {[%clk 0:01:20.5]} 33... Qb5 {[%clk
0:00:31.1]} 34. Rxc4 {[%clk 0:01:16.3]} 34... dxc4 {[%clk 0:00:28.7]} 35. Qc3
{[%clk 0:01:14]} 35... Be4 {[%clk 0:00:22.9]} 36. Ne1 {[%clk 0:01:12.2]} 36...
Bd5 {[%clk 0:00:23.1]} 37. Nc2 {[%clk 0:01:06.4]} 37... Qa4 {[%clk 0:00:22.4]}
38. Ne3 {[%clk 0:01:01.3]} 38... Qb3 {[%clk 0:00:19.3]} 39. Qxb3 {[%clk
0:00:39.7]} 39... cxb3 {[%clk 0:00:19]} 40. Nd1 {[%clk 0:00:38.3]} 40... Be4
{[%clk 0:00:18.5]} 41. Nb2 {[%clk 0:00:37.2]} 41... Kf8 {[%clk 0:00:18]} 42. f3
{[%clk 0:00:37.4]} 42... Bc2 {[%clk 0:00:16.7]} 43. Kg1 {[%clk 0:00:37.6]} 43...
Ke8 {[%clk 0:00:17.3]} 44. Kf2 {[%clk 0:00:37.4]} 44... Kd7 {[%clk 0:00:17.9]}
45. Ke3 {[%clk 0:00:36.9]} 45... Kc6 {[%clk 0:00:18.3]} 46. Bc3 {[%clk
0:00:16.6]} 46... Kb5 {[%clk 0:00:18]} 47. Kd2 {[%clk 0:00:11.7]} 47... Bxb4
{[%clk 0:00:17.8]} 48. Bxb4 {[%clk 0:00:12.1]} 48... Kxb4 {[%clk 0:00:18.1]} 49.
Kc1 {[%clk 0:00:12]} 49... Kxa5 {[%clk 0:00:18.1]} 50. Nc4+ {[%clk 0:00:12.5]}
50... Kb4 {[%clk 0:00:18.2]} 51. Nd6 {[%clk 0:00:13.4]} 51... Kc3 {[%clk
0:00:15.9]} 52. Ne4+ {[%clk 0:00:08.6]} 52... Bxe4 {[%clk 0:00:15]} 53. fxe4
{[%clk 0:00:09.5]} 53... Kxd4 {[%clk 0:00:15.7]} 54. Kb2 {[%clk 0:00:09.8]}
54... Kxe5 {[%clk 0:00:14.8]} 55. Kxb3 {[%clk 0:00:10.7]} 55... Kxe4 {[%clk
0:00:15.5]} 56. Ka4 {[%clk 0:00:11.3]} 56... Kf4 {[%clk 0:00:16.1]} 57. Ka5
{[%clk 0:00:12.2]} 57... e5 {[%clk 0:00:16.1]} 58. Kxa6 {[%clk 0:00:13.1]} 58...
e4 {[%clk 0:00:17]} 59. h4 {[%clk 0:00:14]} 59... e3 {[%clk 0:00:17.5]} 60. g3+
{[%clk 0:00:14.9]} 60... Kxg3 {[%clk 0:00:16.5]} 61. Kb6 {[%clk 0:00:15.4]}
61... e2 {[%clk 0:00:16.9]} 62. Kc6 {[%clk 0:00:16.3]} 62... e1=Q {[%clk
0:00:17.3]} 63. Kd7 {[%clk 0:00:17.2]} 63... Qe6+ {[%clk 0:00:16.7]} 64. Kd8
{[%clk 0:00:17.5]} 64... Kxh4 {[%clk 0:00:15.8]} 65. Kc7 {[%clk 0:00:18.4]}
65... f5 {[%clk 0:00:15.9]} 66. Kd8 {[%clk 0:00:19.3]} 66... Qf7 {[%clk
0:00:16.2]} 67. Kc8 {[%clk 0:00:19.5]} 67... f4 {[%clk 0:00:16.7]} 68. Kb8
{[%clk 0:00:20.2]} 68... f3 {[%clk 0:00:17.4]} 69. Kc8 {[%clk 0:00:20.4]} 69...
f2 {[%clk 0:00:18.3]} 70. Kb8 {[%clk 0:00:21.3]} 70... f1=Q {[%clk 0:00:19.2]}
71. Kc8 {[%clk 0:00:22.2]} 71... Qe7 {[%clk 0:00:18.4]} 72. Kb8 {[%clk
0:00:23.1]} 72... Qff8# {[%clk 0:00:17.9]} 0-1

[Event "*** Titled Tuesday Blitz"]
[Site "Chess.com"]
[Date "2021.03.16"]
[Round "10"]
[White "Aslanov_Umid"]
[Black "NiranjanNavalgund"]
[Result "1/2-1/2"]
[WhiteElo "2427"]
[BlackElo "2528"]
[TimeControl "180+1"]
[EndTime "11:55:47 PDT"]
[Termination "Game drawn by repetition"]

1. e4 {[%clk 0:03:00.9]} 1... e5 {[%clk 0:02:59.4]} 2. Nf3 {[%clk 0:03:01.1]}
2... Nc6 {[%clk 0:02:58.5]} 3. Bc4 {[%clk 0:03:01.3]} 3... Nf6 {[%clk
0:02:58.2]} 4. d3 {[%clk 0:03:01]} 4... h6 {[%clk 0:02:58.4]} 5. O-O {[%clk
0:03:01.3]} 5... d6 {[%clk 0:02:58.3]} 6. c3 {[%clk 0:03:01.4]} 6... g5 {[%clk
0:02:58.5]} 7. Nbd2 {[%clk 0:02:58.3]} 7... Bg7 {[%clk 0:02:50.2]} 8. b4 {[%clk
0:02:55.8]} 8... a6 {[%clk 0:02:49.3]} 9. a4 {[%clk 0:02:55.3]} 9... Ne7 {[%clk
0:02:47.7]} 10. d4 {[%clk 0:02:54.4]} 10... Ng6 {[%clk 0:02:47.7]} 11. dxe5
{[%clk 0:02:53.3]} 11... Nxe5 {[%clk 0:02:48.6]} 12. Nxe5 {[%clk 0:02:53.1]}
12... dxe5 {[%clk 0:02:49.5]} 13. Qe2 {[%clk 0:02:44.3]} 13... Qe7 {[%clk
0:02:47.7]} 14. Ba3 {[%clk 0:02:39.4]} 14... Bg4 {[%clk 0:02:47.1]} 15. Nf3
{[%clk 0:02:33.2]} 15... Nh5 {[%clk 0:02:44.3]} 16. g3 {[%clk 0:02:26.4]} 16...
Qf6 {[%clk 0:02:35]} 17. Kg2 {[%clk 0:02:26.6]} 17... Bf8 {[%clk 0:02:23.5]} 18.
Rad1 {[%clk 0:02:02.5]} 18... Rg8 {[%clk 0:02:17.7]} 19. Rd5 {[%clk 0:01:49.7]}
19... Bd6 {[%clk 0:02:12.8]} 20. Rfd1 {[%clk 0:01:42.3]} 20... O-O-O {[%clk
0:02:02.7]} 21. Qe3 {[%clk 0:01:26]} 21... Nf4+ {[%clk 0:01:57]} 22. gxf4 {[%clk
0:01:19]} 22... gxf4 {[%clk 0:01:57]} 23. Qa7 {[%clk 0:01:12.7]} 23... Bh3+
{[%clk 0:01:50.1]} 24. Kh1 {[%clk 0:01:02.6]} 24... Bg2+ {[%clk 0:01:49.9]} 25.
Kg1 {[%clk 0:01:02.9]} 25... Bxf3+ {[%clk 0:01:40.4]} 26. Kf1 {[%clk 0:01:02.8]}
26... Bxd1 {[%clk 0:01:18.2]} 27. Rxd1 {[%clk 0:01:01.8]} 27... f3 {[%clk
0:01:16.5]} 28. Qa8+ {[%clk 0:00:50.8]} 28... Kd7 {[%clk 0:01:15.2]} 29. Qxb7
{[%clk 0:00:51.7]} 29... Qg6 {[%clk 0:00:55.9]} 30. Ke1 {[%clk 0:00:42.9]} 30...
Qg1+ {[%clk 0:00:52.9]} 31. Kd2 {[%clk 0:00:42.9]} 31... Qxf2+ {[%clk
0:00:52.1]} 32. Kc1 {[%clk 0:00:41]} 32... Qe3+ {[%clk 0:00:47.3]} 33. Kb2
{[%clk 0:00:34.2]} 33... Rg2+ {[%clk 0:00:46.8]} 34. Kb3 {[%clk 0:00:34.2]}
34... Ke7 {[%clk 0:00:27.4]} 35. Rxd6 {[%clk 0:00:26.3]} 35... Rxd6 {[%clk
0:00:26.8]} 36. b5 {[%clk 0:00:23.9]} 36... Qb6 {[%clk 0:00:19.9]} 37. Qd5
{[%clk 0:00:20.9]} 37... Rg7 {[%clk 0:00:15.6]} 38. Qxe5+ {[%clk 0:00:20.5]}
38... Kf8 {[%clk 0:00:16]} 39. Bxd6+ {[%clk 0:00:17.8]} 39... Qxd6 {[%clk
0:00:16.9]} 40. Qxd6+ {[%clk 0:00:15.6]} 40... cxd6 {[%clk 0:00:16.8]} 41. bxa6
{[%clk 0:00:14.8]} 41... f6 {[%clk 0:00:17.1]} 42. Kb4 {[%clk 0:00:13.5]} 42...
f2 {[%clk 0:00:15.6]} 43. Ka5 {[%clk 0:00:13.6]} 43... Rc7 {[%clk 0:00:14.6]}
44. Bf1 {[%clk 0:00:12]} 44... Rxc3 {[%clk 0:00:13.6]} 45. Kb6 {[%clk 0:00:12]}
45... Rc1 {[%clk 0:00:13.3]} 46. a7 {[%clk 0:00:09.8]} 46... Rxf1 {[%clk
0:00:12.1]} 47. a8=Q+ {[%clk 0:00:10]} 47... Kg7 {[%clk 0:00:12.6]} 48. Qb7+
{[%clk 0:00:09.8]} 48... Kg6 {[%clk 0:00:13.1]} 49. Qc8 {[%clk 0:00:09.4]} 49...
Rb1+ {[%clk 0:00:13]} 50. Ka5 {[%clk 0:00:08.8]} 50... f1=Q {[%clk 0:00:13.1]}
51. Qg4+ {[%clk 0:00:09.1]} 51... Kh7 {[%clk 0:00:13.2]} 52. Qd7+ {[%clk
0:00:09.3]} 52... Kg6 {[%clk 0:00:13.6]} 53. Qg4+ {[%clk 0:00:08.8]} 53... Kf7
{[%clk 0:00:12.4]} 54. Qd7+ {[%clk 0:00:09.2]} 54... Kf8 {[%clk 0:00:12.8]} 55.
Qd8+ {[%clk 0:00:09.5]} 55... Kf7 {[%clk 0:00:13.2]} 56. Qd7+ {[%clk 0:00:09.9]}
56... Kg8 {[%clk 0:00:13.7]} 57. Qd8+ {[%clk 0:00:08.8]} 57... Kg7 {[%clk
0:00:13.7]} 58. Qd7+ {[%clk 0:00:09.3]} 58... Kh8 {[%clk 0:00:13.8]} 59. Qd8+
{[%clk 0:00:08.4]} 59... Kh7 {[%clk 0:00:14.1]} 60. Qd7+ {[%clk 0:00:08.6]}
60... Kg6 {[%clk 0:00:14.4]} 61. Qg4+ {[%clk 0:00:08.6]} 1/2-1/2

[Event "*** Titled Tuesday Blitz"]
[Site "Chess.com"]
[Date "2021.03.16"]
[Round "10"]
[White "organdzievhren"]
[Black "pavelalexandru07"]
[Result "1-0"]
[WhiteElo "2428"]
[BlackElo "2294"]
[TimeControl "180+1"]
[EndTime "11:55:52 PDT"]
[Termination "organdzievhren won by resignation"]

1. e4 {[%clk 0:02:57.5]} 1... c5 {[%clk 0:02:59.7]} 2. Nf3 {[%clk 0:02:57.8]}
2... d6 {[%clk 0:02:59.6]} 3. Bb5+ {[%clk 0:02:58.2]} 3... Bd7 {[%clk
0:02:59.3]} 4. Bxd7+ {[%clk 0:02:58.4]} 4... Nxd7 {[%clk 0:02:59.4]} 5. O-O
{[%clk 0:02:59.3]} 5... Ngf6 {[%clk 0:02:59.5]} 6. Re1 {[%clk 0:02:59.7]} 6...
e6 {[%clk 0:02:56.9]} 7. h3 {[%clk 0:03:00.3]} 7... Be7 {[%clk 0:02:56.9]} 8. d3
{[%clk 0:03:00.9]} 8... O-O {[%clk 0:02:56.8]} 9. a4 {[%clk 0:03:01.8]} 9... Re8
{[%clk 0:02:54.8]} 10. Na3 {[%clk 0:03:01.6]} 10... Rc8 {[%clk 0:02:52.5]} 11.
c3 {[%clk 0:03:01.6]} 11... a6 {[%clk 0:02:44.5]} 12. Bf4 {[%clk 0:03:00.3]}
12... Nf8 {[%clk 0:02:39.5]} 13. Bh2 {[%clk 0:02:47.8]} 13... Ng6 {[%clk
0:02:35.8]} 14. Qd2 {[%clk 0:02:45.6]} 14... Bf8 {[%clk 0:02:19]} 15. Rad1
{[%clk 0:02:43.4]} 15... Qd7 {[%clk 0:02:17.3]} 16. b3 {[%clk 0:02:42.5]} 16...
Qc6 {[%clk 0:02:10.5]} 17. Nc4 {[%clk 0:02:34.3]} 17... b5 {[%clk 0:02:07.6]}
18. axb5 {[%clk 0:02:33.4]} 18... axb5 {[%clk 0:02:08.5]} 19. Na5 {[%clk
0:02:33.5]} 19... Qc7 {[%clk 0:02:04.1]} 20. b4 {[%clk 0:02:33.3]} 20... e5
{[%clk 0:01:48.9]} 21. Rc1 {[%clk 0:02:30]} 21... Qb6 {[%clk 0:01:44.2]} 22. Qa2
{[%clk 0:02:15.6]} 22... Ra8 {[%clk 0:01:13.4]} 23. Ng5 {[%clk 0:02:12.9]} 23...
Ra7 {[%clk 0:00:52.9]} 24. Qb3 {[%clk 0:02:10.9]} 24... h6 {[%clk 0:00:48.9]}
25. Nf3 {[%clk 0:02:09.9]} 25... Nh5 {[%clk 0:00:42.1]} 26. Qd1 {[%clk
0:02:02.1]} 26... Nhf4 {[%clk 0:00:40.5]} 27. Bxf4 {[%clk 0:02:01.8]} 27... Nxf4
{[%clk 0:00:40.1]} 28. Kh2 {[%clk 0:01:53.7]} 28... cxb4 {[%clk 0:00:28.3]} 29.
cxb4 {[%clk 0:01:53.6]} 29... Qxf2 {[%clk 0:00:27.6]} 30. Rc2 {[%clk 0:01:42]}
30... Qb6 {[%clk 0:00:24.3]} 31. Qd2 {[%clk 0:01:27.5]} 31... Rc7 {[%clk
0:00:23.4]} 32. Rec1 {[%clk 0:01:24.7]} 32... Rec8 {[%clk 0:00:22.4]} 33. g3
{[%clk 0:01:19.5]} 33... Ne6 {[%clk 0:00:21.5]} 34. Kg2 {[%clk 0:01:18.8]} 34...
Rxc2 {[%clk 0:00:20.5]} 35. Rxc2 {[%clk 0:01:18.9]} 35... Rxc2 {[%clk 0:00:21]}
36. Qxc2 {[%clk 0:01:19.2]} 36... Nd4 {[%clk 0:00:21.3]} 37. Nxd4 {[%clk
0:01:18.4]} 37... Qxd4 {[%clk 0:00:21.9]} 38. Nc6 {[%clk 0:01:16.7]} 38... Qb6
{[%clk 0:00:21.6]} 39. h4 {[%clk 0:01:09.6]} 39... Qe3 {[%clk 0:00:20.5]} 40.
Na5 {[%clk 0:00:57.5]} 40... g6 {[%clk 0:00:17]} 41. Nb3 {[%clk 0:00:56.8]}
41... Qb6 {[%clk 0:00:11.2]} 42. Qc8 {[%clk 0:00:54.6]} 42... Kg7 {[%clk
0:00:11]} 43. h5 {[%clk 0:00:52.5]} 43... gxh5 {[%clk 0:00:08.1]} 44. Qc2 {[%clk
0:00:43.9]} 44... Qe3 {[%clk 0:00:07.4]} 45. Nd2 {[%clk 0:00:44]} 45... Be7
{[%clk 0:00:06.9]} 46. Nf3 {[%clk 0:00:43.9]} 46... Bf6 {[%clk 0:00:03.2]} 47.
Qd1 {[%clk 0:00:41.2]} 47... Qb6 {[%clk 0:00:02.4]} 48. Ng1 {[%clk 0:00:39.2]}
48... Qd4 {[%clk 0:00:02.2]} 49. Qxh5 {[%clk 0:00:36.5]} 49... Qxb4 {[%clk
0:00:02]} 50. Qg4+ {[%clk 0:00:36.4]} 50... Kf8 {[%clk 0:00:01.9]} 51. Nf3
{[%clk 0:00:35.8]} 51... Qb2+ {[%clk 0:00:01.6]} 52. Kh3 {[%clk 0:00:35.6]}
52... Qc3 {[%clk 0:00:01.6]} 53. Qf5 {[%clk 0:00:35.1]} 53... Be7 {[%clk
0:00:01.3]} 54. Qh7 {[%clk 0:00:34.3]} 54... Ke8 {[%clk 0:00:01.9]} 55. Qf5
{[%clk 0:00:27.5]} 55... Qxd3 {[%clk 0:00:02]} 56. Qc8+ {[%clk 0:00:25.5]} 56...
Bd8 {[%clk 0:00:01.7]} 57. Qc6+ {[%clk 0:00:25]} 57... Kf8 {[%clk 0:00:02.3]}
58. Qd7 {[%clk 0:00:24.8]} 58... Be7 {[%clk 0:00:02.3]} 59. Qc8+ {[%clk
0:00:23.1]} 59... Kg7 {[%clk 0:00:02.9]} 60. Qg4+ {[%clk 0:00:22.7]} 60... Kh8
{[%clk 0:00:03.2]} 61. Qf5 {[%clk 0:00:22.1]} 61... Qe2 {[%clk 0:00:02.9]} 62.
Qxf7 {[%clk 0:00:20.4]} 62... Qxe4 {[%clk 0:00:03.3]} 63. Qe8+ {[%clk 0:00:20]}
63... Kg7 {[%clk 0:00:03]} 64. Qxe7+ {[%clk 0:00:20.4]} 64... Kg6 {[%clk
0:00:03.1]} 65. Nh4+ {[%clk 0:00:17.6]} 65... Kh5 {[%clk 0:00:02.2]} 66. Qf7+
{[%clk 0:00:16.1]} 66... Kg5 {[%clk 0:00:02.5]} 67. Qg7+ {[%clk 0:00:13.5]}
67... Kh5 {[%clk 0:00:02.1]} 68. g4+ {[%clk 0:00:13.9]} 1-0

[Event "*** Titled Tuesday Blitz"]
[Site "Chess.com"]
[Date "2021.03.16"]
[Round "10"]
[White "IngOscarArdila"]
[Black "Forantes"]
[Result "0-1"]
[WhiteElo "2284"]
[BlackElo "2421"]
[TimeControl "180+1"]
[EndTime "11:55:54 PDT"]
[Termination "Forantes won on time"]

1. d4 {[%clk 0:02:50.9]} 1... Nf6 {[%clk 0:02:59]} 2. c4 {[%clk 0:02:49.4]} 2...
g6 {[%clk 0:02:59.2]} 3. Nc3 {[%clk 0:02:49.2]} 3... d5 {[%clk 0:02:58.4]} 4.
cxd5 {[%clk 0:02:47.9]} 4... Nxd5 {[%clk 0:02:59.3]} 5. e4 {[%clk 0:02:48.4]}
5... Nxc3 {[%clk 0:02:59.7]} 6. bxc3 {[%clk 0:02:49.3]} 6... Bg7 {[%clk
0:03:00.3]} 7. Bc4 {[%clk 0:02:49.3]} 7... c5 {[%clk 0:02:58.1]} 8. Ne2 {[%clk
0:02:49.5]} 8... O-O {[%clk 0:02:58]} 9. O-O {[%clk 0:02:49]} 9... Nc6 {[%clk
0:02:58.4]} 10. Be3 {[%clk 0:02:48.6]} 10... cxd4 {[%clk 0:02:56.4]} 11. cxd4
{[%clk 0:02:48.6]} 11... Qa5 {[%clk 0:02:56]} 12. Rc1 {[%clk 0:02:41.6]} 12...
Rd8 {[%clk 0:02:51.6]} 13. Qb3 {[%clk 0:02:37.2]} 13... e6 {[%clk 0:02:44.8]}
14. d5 {[%clk 0:02:32.4]} 14... exd5 {[%clk 0:02:35.9]} 15. Bxd5 {[%clk
0:02:32.4]} 15... Ne5 {[%clk 0:02:29.1]} 16. Bg5 {[%clk 0:02:24.3]} 16... Rd7
{[%clk 0:01:59]} 17. f4 {[%clk 0:02:06.6]} 17... Ng4 {[%clk 0:01:50.2]} 18. h3
{[%clk 0:02:02.9]} 18... Nf6 {[%clk 0:01:46.9]} 19. Bxf6 {[%clk 0:01:20.7]}
19... Bxf6 {[%clk 0:01:46.9]} 20. Rfd1 {[%clk 0:01:18]} 20... Kg7 {[%clk
0:01:39.1]} 21. e5 {[%clk 0:01:15.5]} 21... Bd8 {[%clk 0:01:39.1]} 22. Kh1
{[%clk 0:01:13.8]} 22... Re7 {[%clk 0:01:27.5]} 23. Nd4 {[%clk 0:01:09.7]} 23...
Bb6 {[%clk 0:01:24.7]} 24. Nb5 {[%clk 0:01:00.7]} 24... Be6 {[%clk 0:01:10.9]}
25. Nd6 {[%clk 0:00:58.4]} 25... Bxd5 {[%clk 0:00:54.9]} 26. Rxd5 {[%clk
0:00:58.1]} 26... Qa6 {[%clk 0:00:55.2]} 27. Rb5 {[%clk 0:00:52.9]} 27... Rd8
{[%clk 0:00:44.5]} 28. a4 {[%clk 0:00:51.9]} 28... Bc7 {[%clk 0:00:20.9]} 29.
Rxc7 {[%clk 0:00:47.3]} 29... Rxc7 {[%clk 0:00:19.4]} 30. Kh2 {[%clk 0:00:42.1]}
30... Qc6 {[%clk 0:00:15]} 31. Qb2 {[%clk 0:00:37.4]} 31... Qc3 {[%clk
0:00:07.4]} 32. Qxc3 {[%clk 0:00:35.6]} 32... Rxc3 {[%clk 0:00:08.3]} 33. Rxb7
{[%clk 0:00:35.8]} 33... Rxd6 {[%clk 0:00:07.3]} 34. exd6 {[%clk 0:00:35.8]}
34... Rd3 {[%clk 0:00:08]} 35. d7 {[%clk 0:00:34.1]} 35... a5 {[%clk 0:00:07.9]}
36. Ra7 {[%clk 0:00:33.3]} 36... Kf6 {[%clk 0:00:08.3]} 37. Rxa5 {[%clk
0:00:27.5]} 37... Rxd7 {[%clk 0:00:08.4]} 38. g4 {[%clk 0:00:26.5]} 38... Rd3
{[%clk 0:00:08.7]} 39. Kg2 {[%clk 0:00:26.2]} 39... Ra3 {[%clk 0:00:07.7]} 40.
Ra6+ {[%clk 0:00:24.6]} 40... Ke7 {[%clk 0:00:07]} 41. f5 {[%clk 0:00:22.8]}
41... gxf5 {[%clk 0:00:06.1]} 42. gxf5 {[%clk 0:00:23.5]} 42... h5 {[%clk
0:00:07]} 43. f6+ {[%clk 0:00:23.6]} 43... Kd7 {[%clk 0:00:07.3]} 44. Ra7+
{[%clk 0:00:22.6]} 44... Ke6 {[%clk 0:00:07.7]} 45. Ra6+ {[%clk 0:00:21.8]}
45... Kf5 {[%clk 0:00:08.3]} 46. Ra5+ {[%clk 0:00:19.4]} 46... Kg6 {[%clk
0:00:08]} 47. Ra6 {[%clk 0:00:18.9]} 47... h4 {[%clk 0:00:07.8]} 48. Kh2 {[%clk
0:00:18.6]} 48... Ra2+ {[%clk 0:00:07.8]} 49. Kh1 {[%clk 0:00:18.6]} 49... Kg5
{[%clk 0:00:08.2]} 50. Kg1 {[%clk 0:00:17.1]} 50... Ra3 {[%clk 0:00:06.8]} 51.
Kh2 {[%clk 0:00:14.8]} 51... Kf4 {[%clk 0:00:07.3]} 52. Ra7 {[%clk 0:00:14]}
52... Ra2+ {[%clk 0:00:07.6]} 53. Kg1 {[%clk 0:00:14.7]} 53... Kg3 {[%clk
0:00:08.2]} 54. Kf1 {[%clk 0:00:14.7]} 54... Rf2+ {[%clk 0:00:07.6]} 55. Ke1
{[%clk 0:00:14.2]} 55... Rxf6 {[%clk 0:00:08.2]} 56. a5 {[%clk 0:00:14.8]} 56...
Kxh3 {[%clk 0:00:08.5]} 57. a6 {[%clk 0:00:15.3]} 57... Kg2 {[%clk 0:00:08.4]}
58. Rd7 {[%clk 0:00:14.4]} 58... Rxa6 {[%clk 0:00:07.4]} 59. Rxf7 {[%clk
0:00:14.8]} 59... Rg6 {[%clk 0:00:08]} 60. Rh7 {[%clk 0:00:14.2]} 60... h3
{[%clk 0:00:08.2]} 61. Ke2 {[%clk 0:00:14.6]} 61... h2 {[%clk 0:00:08.7]} 62.
Rf7 {[%clk 0:00:12.1]} 62... h1=Q {[%clk 0:00:08.5]} 63. Rf2+ {[%clk 0:00:12.1]}
63... Kg3 {[%clk 0:00:08.7]} 0-1